bitfinex/quotes_ETHUSD_20240711
["timestamp","ask_amount","ask_price","bid_price","bid_amount"]
[1720657832991,2.3276,3098.2,3097.4,0.86531486]
[1720657833285,0.03975486,3098.1,3097.4,0.80075919]
[1720657838608,0.03975486,3098.1,3097.4,0.86531473]
[1720657838812,0.03975486,3098.1,3097.5,0.73224647]
[1720657839222,0.03975486,3098.1,3097.6,0.06455551]
[1720657839426,0.03975486,3098.1,3098.0,1.896]
[1720657839642,2.00201233,3100.6,3098.0,1.896]
[1720657839643,2.3788,3099.2,3098.0,6.31205437]
[1720657839788,0.0398275,3098.1,3098.0,7.19433413]
[1720657839993,2.3788,3099.2,3098.2,6.45516]
[1720657840226,2.3788,3099.2,3098.5,1.896]
[1720657840430,0.03864864,3099.1,3098.6,0.06453624]
[1720657840731,2.3788,3099.2,3098.6,0.06453624]
[1720657841088,2.3788,3099.2,3098.1,0.67455054]
[1720657841089,2.3788,3099.2,3098.1,1.896]
[1720657841329,2.3788,3099.2,3098.2,1.59328405]
[1720657842081,2.3788,3099.2,3098.2,0.97874623]
[1720657842286,0.03819786,3099.1,3098.2,0.97874623]
[1720657843337,0.03819786,3099.1,3098.1,3.0]
[1720657843646,0.03819786,3099.1,3098.2,1.12366492]
[1720657843973,0.03819786,3099.1,3098.1,3.0]
[1720657844174,0.03819786,3099.1,3098.0,6.58150915]
[1720657844378,0.03819786,3099.1,3098.1,6.58689116]
[1720657844677,0.03819786,3099.1,3098.2,4.0959802]
[1720657844989,0.03819786,3099.1,3098.3,1.18821209]
[1720657845169,0.03819786,3099.1,3098.4,1.12360994]
[1720657845331,0.03819786,3099.1,3098.5,0.06453818]
[1720657848648,0.03819786,3099.1,3098.5,0.06453363]
[1720657848853,0.03819786,3099.1,3098.6,0.68733705]
[1720657850087,0.03819786,3099.1,3098.7,0.06453364]
[1720657850989,0.03819786,3099.1,3098.6,3.91458705]
[1720657851196,8.27529906,3099.5,3098.6,3.91458705]
[1720657851357,0.03846434,3099.0,3098.6,3.91458705]
[1720657851558,8.27529906,3099.5,3098.7,0.39145871]
[1720657852095,0.03860058,3099.4,3098.7,0.39145871]
[1720657854188,0.03860058,3099.4,3098.6,0.68733705]
[1720657855293,0.03860058,3099.4,3098.4,1.896]
[1720657855469,0.03860058,3099.4,3098.4,4.896]
[1720657856256,0.03860058,3099.4,3098.4,8.12346]
[1720657857504,2.3662,3099.3,3098.4,1.896]
[1720657857876,6.401,3099.9,3098.4,1.896]
[1720657857877,2.4046895,3099.2,3098.4,1.896]
[1720657858067,2.4046895,3099.2,3098.4,2.2078259]
[1720657858281,2.3662,3099.2,3098.4,2.2078259]
[1720657861201,2.3662,3099.2,3098.0,0.67515283]
[1720657861414,2.4462,3099.1,3098.0,0.67515283]
[1720657861621,3.0,3099.1,3098.0,0.67515283]
[1720657861821,2.48473695,3099.0,3098.0,0.67515283]
[1720657862119,3.401,3098.9,3098.0,0.67515283]
[1720657862275,7.08343674,3098.8,3098.0,0.67515283]
[1720657862482,2.3571,3098.7,3098.0,0.67515283]
[1720657862716,2.39561484,3098.6,3098.0,0.67515283]
[1720657863020,2.3571,3098.5,3098.0,0.67515283]
[1720657863179,6.43937936,3098.5,3098.0,0.67515283]
[1720657863383,2.4171,3098.3,3098.0,0.67515283]
[1720657863681,2.45537502,3098.2,3098.0,0.67515283]
[1720657863917,5.45537502,3098.2,3098.0,0.67515283]
[1720657864076,5.79253536,3098.2,3098.0,0.67515283]
[1720657864282,2.3104,3098.1,3098.0,0.67515283]
[1720657864595,2.3104,3098.0,3097.9,1.01272925]
[1720657864795,5.3104,3098.0,3097.9,1.01272925]
[1720657864995,5.34853475,3098.0,3097.9,1.01272925]
[1720657865687,5.68570555,3098.0,3097.9,1.01272925]
[1720657866825,5.68570555,3098.0,3096.8,1.896]
[1720657867129,3.56857056,3097.9,3096.9,0.1896]
[1720657867487,0.0380709,3097.8,3096.9,0.1896]
[1720657867921,2.4316,3097.7,3096.9,0.1896]
[1720657868187,0.03800705,3097.6,3096.9,0.1896]
[1720657871391,0.03800705,3097.6,3096.8,1.896]
[1720657877993,2.2959,3097.5,3096.8,1.896]
[1720657878194,2.33294327,3097.5,3096.8,1.896]
[1720657880727,2.33294327,3097.5,3097.2,0.79]
[1720657880925,0.33712898,3097.4,3097.2,0.79]
[1720657881140,2.4006,3097.3,3097.2,0.79]
[1720657881318,2.4375794,3097.3,3097.2,0.79]
[1720657887166,0.0369794,3097.3,3097.2,0.79]
[1720657888920,0.33712898,3097.4,3097.2,0.79]
[1720657889116,8.27799906,3098.1,3097.4,6.45682]
[1720657889117,5.83959906,3098.1,3097.4,6.45682]
[1720657889348,5.83959906,3098.1,3098.0,0.79]
[1720657889349,0.33706632,3098.1,3098.0,0.79]
[1720657890570,0.37289299,3098.1,3098.0,0.79]
[1720657891570,0.33706632,3098.1,3098.0,0.79]
[1720657891759,0.37290289,3098.1,3098.0,0.79]
[1720657892436,0.37290289,3098.1,3097.8,0.79]
[1720657892638,0.37290289,3098.1,3097.2,1.895]
[1720657892868,0.37290289,3098.1,3097.3,0.1895]
[1720657893070,0.33706632,3098.1,3097.3,0.1895]
[1720657893235,0.33706632,3098.1,3097.3,0.25406452]
[1720657893432,0.03580464,3098.0,3097.3,0.25406452]
[1720657893638,0.03580464,3098.0,3097.6,1.895]
[1720657893864,0.03580464,3098.0,3097.7,0.512332]
[1720657894064,0.33706632,3098.1,3097.7,0.512332]
[1720657894538,0.03583614,3098.0,3097.6,1.895]
[1720657896383,0.03583614,3098.0,3097.3,0.1895]
[1720657897337,0.03583614,3098.0,3097.4,1.12399321]
[1720657897785,0.03583614,3098.0,3097.5,1.12399321]
[1720657897996,0.33706632,3098.1,3097.5,1.12399321]
[1720657898197,0.03596407,3098.0,3097.6,2.28984569]
[1720657898403,0.03596407,3098.0,3097.6,0.60384717]
[1720657898785,0.03596407,3098.0,3097.7,1.12389286]
[1720657899001,0.03596407,3098.0,3097.6,0.60384717]
[1720657899205,0.03596407,3098.0,3097.7,2.80979935]
[1720657899406,0.03596407,3098.0,3097.7,0.40879061]
[1720657899610,0.03596407,3098.0,3097.6,1.27810679]
[1720657899907,0.03596407,3098.0,3097.7,2.80978823]
[1720657900111,0.03596407,3098.0,3097.6,0.60384717]
[1720657900267,0.03596407,3098.0,3097.7,2.80980863]
[1720657900469,0.03596407,3098.0,3097.6,0.60384717]
[1720657900700,0.03596407,3098.0,3097.4,0.67425962]
[1720657900880,0.03596407,3098.0,3097.5,2.80989943]
[1720657901068,0.03596407,3098.0,3097.6,1.12395977]
[1720657901269,0.03596407,3098.0,3097.7,1.12392183]
[1720657901469,0.03596407,3098.0,3097.6,1.68589786]
[1720657901668,0.03596407,3098.0,3097.7,1.35994772]
[1720657901912,0.03596407,3098.0,3097.7,0.23601575]
[1720657902269,0.03596407,3098.0,3097.6,1.68590795]
[1720657902507,0.03596407,3098.0,3097.7,1.12393459]
[1720657902680,0.03596407,3098.0,3097.6,1.68591081]
[1720657902879,0.03596407,3098.0,3097.7,1.12393295]
[1720657903083,0.03596407,3098.0,3097.6,1.68589965]
[1720657903284,0.03596407,3098.0,3097.7,3.04579508]
[1720657903568,0.03596407,3098.0,3097.7,0.23601593]
[1720657903768,0.03596407,3098.0,3097.6,1.68587279]
[1720657903975,0.03596407,3098.0,3097.7,1.12391515]
[1720657904202,0.03596407,3098.0,3097.6,1.68587262]
[1720657904410,0.03596407,3098.0,3097.7,1.12391528]
[1720657904574,0.03596407,3098.0,3097.6,1.68587304]
[1720657904763,0.03596407,3098.0,3097.7,1.12391801]
[1720657904971,0.03596407,3098.0,3097.6,0.55886327]
[1720657905203,0.03596407,3098.0,3097.7,1.12393489]
[1720657905408,0.03596407,3098.0,3097.6,0.55886327]
[1720657905607,0.03596407,3098.0,3097.7,1.12393486]
[1720657905810,0.03596407,3098.0,3097.6,0.55886327]
[1720657905980,0.03596407,3098.0,3097.7,1.12393485]
[1720657906315,0.03596407,3098.0,3097.6,0.55886327]
[1720657906513,0.03596407,3098.0,3097.7,1.12394098]
[1720657906713,0.03596407,3098.0,3097.6,0.55886327]
[1720657906895,0.03596407,3098.0,3097.7,1.12393123]
[1720657907095,0.03596407,3098.0,3097.6,0.55886327]
[1720657907399,0.03596407,3098.0,3097.7,1.1239405]
[1720657907607,0.03596407,3098.0,3097.6,0.55886327]
[1720657907779,0.03596407,3098.0,3097.7,1.12391794]
[1720657907976,0.03596407,3098.0,3097.6,0.55886327]
[1720657908181,0.03596407,3098.0,3097.7,1.12393146]
[1720657908399,0.03596407,3098.0,3097.7,0.23570544]
[1720657908601,0.03596407,3098.0,3097.7,2.70286151]
[1720657908808,0.03596407,3098.0,3097.8,1.18843539]
[1720657909014,0.03596407,3098.0,3097.9,1.12387935]
[1720657909223,0.33706632,3098.1,3097.9,2.80959646]
[1720657909427,5.83959906,3098.6,3098.0,0.6747734]
[1720657909719,6.17662337,3098.6,3098.1,2.80939003]
[1720657909924,0.03617467,3098.5,3098.2,6.03698443]
[1720657910093,0.03617467,3098.5,3098.3,2.80932443]
[1720657910296,0.03617467,3098.5,3098.2,3.22766]
[1720657910619,0.33702431,3098.6,3098.2,3.22766]
[1720657910620,0.33702431,3098.6,3098.3,3.19931355]
[1720657910923,0.33702431,3098.6,3098.3,0.39019196]
[1720657911130,0.33702431,3098.6,3098.3,2.07564042]
[1720657911330,0.33702431,3098.6,3098.4,1.12362834]
[1720657911626,0.33702431,3098.6,3098.3,0.39019196]
[1720657911922,0.33702431,3098.6,3098.4,0.2692792]
[1720657912979,0.33702431,3098.6,3098.3,0.39019196]
[1720657913184,0.33702431,3098.6,3098.0,2.50522425]
[1720657913185,2.58932431,3098.6,3098.0,0.61022425]
[1720657913487,2.58932431,3098.6,3097.7,1.68553637]
[1720657913792,0.03642061,3098.5,3097.6,5.12329]
[1720657913992,0.03642061,3098.5,3097.7,2.80953853]
[1720657914238,0.03642061,3098.5,3097.7,1.68572312]
[1720657914516,0.26257449,3098.4,3097.5,1.68572312]
[1720657914720,0.26257449,3098.4,3097.4,1.68572312]
[1720657914896,0.03640865,3098.3,3097.5,1.12395799]
[1720657915101,0.26257449,3098.4,3097.6,1.12395799]
[1720657915488,0.26257449,3098.4,3097.5,1.68572312]
[1720657915688,0.26257449,3098.4,3097.6,1.68277097]
[1720657915884,0.33702431,3098.6,3097.7,2.262]
[1720657916086,0.33702431,3098.6,3097.9,0.67425962]
[1720657916290,0.03646259,3098.5,3098.0,1.12390201]
[1720657916510,0.33702431,3098.6,3097.9,1.68572312]
[1720657916717,0.33702431,3098.6,3098.0,1.12373814]
[1720657916918,0.33702431,3098.6,3098.0,1.84991923]
[1720657917091,0.33702431,3098.6,3098.0,0.72618109]
[1720657917729,0.33702431,3098.6,3098.1,1.12371591]
[1720657920500,0.33702431,3098.6,3098.2,0.06454596]
[1720657920825,0.33702431,3098.6,3098.3,1.12363639]
[1720657921028,0.33702431,3098.6,3098.0,2.62118109]
[1720657921202,2.77042431,3098.6,3097.9,1.68544577]
[1720657921402,0.03648206,3098.5,3097.6,4.13929304]
[1720657921611,0.03648206,3098.5,3097.7,3.48525872]
[1720657921815,2.2545,3099.0,3097.8,1.12386419]
[1720657922120,2.2545,3099.0,3097.7,1.68544577]
[1720657922121,2.4655,3098.8,3097.6,1.895]
[1720657922300,2.3557,3098.6,3097.4,1.68580337]
[1720657922515,2.3557,3098.6,3097.5,1.12394593]
[1720657922840,0.03658925,3098.5,3097.5,1.12394593]
[1720657923130,0.03658925,3098.5,3097.3,1.68580337]
[1720657923331,0.03658925,3098.5,3097.4,2.809936]
[1720657923494,0.53922892,3098.4,3097.3,2.36222915]
[1720657923700,0.53922892,3098.4,3097.4,2.80990756]
[1720657923902,0.03649299,3098.3,3097.5,1.12394596]
[1720657924234,0.03649299,3098.3,3097.4,1.6859616]
[1720657924436,0.03649299,3098.3,3097.5,1.12394241]
[1720657924597,0.03649299,3098.3,3097.4,1.68592748]
[1720657924930,0.39406518,3098.3,3097.4,1.68592748]
[1720657925090,0.39406518,3098.3,3097.5,1.1239617]
[1720657925292,0.39406518,3098.3,3097.4,1.68592748]
[1720657925533,2.3557,3098.2,3097.3,1.68592748]
[1720657925732,5.3557,3098.2,3097.2,1.895]
[1720657925914,5.3557,3098.2,3097.3,1.12404527]
[1720657925915,0.03642915,3098.1,3097.3,1.12404527]
[1720657926116,0.03642915,3098.1,3097.2,2.15212675]
[1720657926321,0.03642915,3098.1,3097.2,3.83822707]
[1720657926501,0.03642915,3098.1,3097.2,2.15212675]
[1720657926691,0.03642915,3098.1,3097.3,1.12406716]
[1720657926892,0.03642915,3098.1,3097.2,2.15212675]
[1720657927130,0.03642915,3098.1,3097.3,1.12403816]
[1720657927427,0.03642915,3098.1,3097.2,2.15212675]
[1720657927428,0.70799711,3098.1,3097.2,2.15212675]
[1720657927642,0.70799711,3098.1,3097.3,1.12407145]
[1720657927643,3.70799711,3098.1,3097.3,1.12407145]
[1720657927788,3.70799711,3098.1,3097.2,2.15212675]
[1720657927993,3.70799711,3098.1,3097.3,1.12407124]
[1720657928195,3.70799711,3098.1,3097.2,2.15212675]
[1720657928525,3.70799711,3098.1,3097.3,2.8101565]
[1720657928727,2.3311,3097.9,3097.0,0.67626755]
[1720657929029,2.3311,3097.9,3096.9,1.01440133]
[1720657929030,0.03625721,3097.8,3096.9,0.67626755]
[1720657929230,0.03625721,3097.8,3097.1,0.67626755]
[1720657929532,0.03625721,3097.8,3097.2,5.73036516]
[1720657929838,0.03625721,3097.8,3097.3,0.67626755]
[1720657930127,0.03625721,3097.8,3097.4,2.81008062]
[1720657930429,0.03625721,3097.8,3097.3,0.6771076]
[1720657930626,0.03625721,3097.8,3097.4,2.81010226]
[1720657930792,0.03625721,3097.8,3097.4,0.57308794]
[1720657930992,0.03625721,3097.8,3097.5,2.81003997]
[1720657931229,0.3370788,3098.2,3097.6,2.80994872]
[1720657931392,0.3370788,3098.2,3097.7,2.80990618]
[1720657931593,0.3370788,3098.2,3097.5,0.6771076]
[1720657931791,0.3370788,3098.2,3097.6,3.03644147]
[1720657931993,0.3370788,3098.2,3097.7,1.12394231]
[1720657932189,0.3370788,3098.2,3097.6,0.22658569]
[1720657932425,0.3370788,3098.2,3097.7,1.12397772]
[1720657932631,0.3370788,3098.2,3097.6,0.22658569]
[1720657932812,0.3370788,3098.2,3097.7,1.12398951]
[1720657932993,0.3370788,3098.2,3097.6,0.22658569]
[1720657933191,0.3370788,3098.2,3097.7,1.12397824]
[1720657933394,0.3370788,3098.2,3097.6,0.22658569]
[1720657933620,0.3370788,3098.2,3097.7,2.80990388]
[1720657933808,0.3370788,3098.2,3097.8,3.4229236]
[1720657934007,0.3370788,3098.2,3097.8,0.61301972]
[1720657934741,0.3370788,3098.2,3097.9,1.12392965]
[1720657935027,0.3370788,3098.2,3097.8,0.61301972]
[1720657935235,0.3370788,3098.2,3097.9,1.12393134]
[1720657935437,0.3370788,3098.2,3097.8,0.61301972]
[1720657935636,0.03619173,3098.1,3097.9,1.12388695]
[1720657935848,0.03619173,3098.1,3097.8,0.61301972]
[1720657936038,0.03619173,3098.1,3097.9,1.12390269]
[1720657936206,0.03619173,3098.1,3097.8,0.61301972]
[1720657936408,0.03619173,3098.1,3097.9,1.12391052]
[1720657936714,0.03619173,3098.1,3097.6,0.6771076]
[1720657936922,0.03619173,3098.1,3097.7,2.8099021]
[1720657937127,0.03619173,3098.1,3097.6,0.1692769]
[1720657937329,0.03619173,3098.1,3097.7,1.12398182]
[1720657937527,0.03619173,3098.1,3097.6,0.1692769]
[1720657937737,0.03619173,3098.1,3097.7,2.80990502]
[1720657937938,0.03619173,3098.1,3097.8,3.17553397]
[1720657938141,0.03619173,3098.1,3097.9,1.12395969]
[1720657938320,0.03619173,3098.1,3097.8,0.36562895]
[1720657938522,0.03619173,3098.1,3097.6,0.8463845]
[1720657938732,0.03619173,3098.1,3097.7,2.80984622]
[1720657939045,0.03619173,3098.1,3097.8,2.80980075]
[1720657939243,0.03619173,3098.1,3097.6,0.91093852]
[1720657939444,0.03619173,3098.1,3097.7,2.8098356]
[1720657939742,0.03619173,3098.1,3097.5,0.6771076]
[1720657939944,0.03619173,3098.1,3097.6,3.48698513]
[1720657940158,0.03619173,3098.1,3097.7,2.80986723]
[1720657940313,0.03619173,3098.1,3097.6,0.6771076]
[1720657940509,0.03619173,3098.1,3097.7,1.12396848]
[1720657940710,0.03619173,3098.1,3097.5,0.6771076]
[1720657940915,0.03619173,3098.1,3097.6,2.8099724]
[1720657941114,0.03619173,3098.1,3097.7,2.80995655]
[1720657941339,0.03619173,3098.1,3097.8,1.12398896]
[1720657941653,0.03619173,3098.1,3097.5,0.6771076]
[1720657941856,0.03619173,3098.1,3097.6,3.20404155]
[1720657942011,0.03619173,3098.1,3097.7,2.80997326]
[1720657942210,0.03619173,3098.1,3097.5,0.6771076]
[1720657942544,0.03619173,3098.1,3097.6,1.12401095]
[1720657942709,0.03619173,3098.1,3097.4,0.6771076]
[1720657942908,2.3781,3098.0,3097.5,2.81007136]
[1720657943108,2.3781,3098.0,3097.3,0.6771076]
[1720657943347,0.0347983,3097.9,3097.4,2.81021996]
[1720657943545,0.0347983,3097.9,3097.3,0.6771076]
[1720657943711,0.0347983,3097.9,3097.4,2.81024438]
[1720657943912,0.0347983,3097.9,3097.2,2.5721076]
[1720657943913,0.33712538,3097.8,3097.5,1.12408936]
[1720657944156,0.33712538,3097.8,3097.2,2.5721076]
[1720657944312,0.33712538,3097.8,3097.3,2.81018315]
[1720657944511,0.33712538,3097.8,3097.4,1.12407326]
[1720657944861,0.33712538,3097.8,3097.2,0.6771076]
[1720657945014,0.33712538,3097.8,3097.3,2.81022791]
[1720657945215,0.33712538,3097.8,3097.4,1.12409116]
[1720657945544,0.33712538,3097.8,3097.2,0.6771076]
[1720657945735,0.33712538,3097.8,3097.3,2.81019956]
[1720657945936,0.33712538,3097.8,3097.4,1.12407982]
[1720657946241,0.33712538,3097.8,3097.2,0.39409499]
[1720657946467,0.33712538,3097.8,3097.3,1.12409368]
[1720657946645,0.33712538,3097.8,3097.2,0.39409499]
[1720657946646,0.33712538,3097.8,3097.1,0.6771076]
[1720657946814,0.33712538,3097.8,3097.2,0.1692769]
[1720657947013,0.33712538,3097.8,3097.3,1.12411554]
[1720657947246,0.33712538,3097.8,3097.1,0.6771076]
[1720657947557,0.33712538,3097.8,3097.2,2.81028676]
[1720657947758,0.33712538,3097.8,3097.0,0.6771076]
[1720657947958,0.33712538,3097.8,3097.1,2.81035235]
[1720657948116,0.33712538,3097.8,3097.2,2.81035235]
[1720657948316,0.03473444,3097.7,3097.3,1.12414094]
[1720657948651,0.33712538,3097.8,3097.1,0.6771076]
[1720657948949,0.03470251,3097.6,3097.2,2.81029737]
[1720657949117,2.3781,3098.0,3097.2,2.81029737]
[1720657949118,0.03473444,3097.7,3097.3,1.12411895]
[1720657949455,0.03470251,3097.6,3097.1,0.6771076]
[1720657949654,0.03470251,3097.6,3097.2,2.8102568]
[1720657949840,2.3781,3098.0,3097.3,1.12410272]
[1720657950154,0.0347983,3097.9,3097.1,0.6771076]
[1720657950364,0.0347983,3097.9,3097.1,0.39409499]
[1720657950564,0.0347983,3097.9,3097.2,2.81021583]
[1720657950771,0.0347983,3097.9,3097.1,0.39409499]
[1720657950964,0.0347983,3097.9,3097.2,2.81029968]
[1720657951267,0.0347983,3097.9,3097.0,0.67743244]
[1720657951488,0.0347983,3097.9,3097.1,2.8102937]
[1720657951676,0.0347983,3097.9,3097.2,2.8102937]
[1720657951832,0.0347983,3097.9,3097.0,0.67743244]
[1720657952029,0.0347983,3097.9,3097.1,2.97965329]
[1720657952246,0.0347983,3097.9,3097.2,2.81029518]
[1720657952447,0.0347983,3097.9,3097.1,0.16935811]
[1720657952653,0.0347983,3097.9,3097.2,2.81028184]
[1720657952942,0.0347983,3097.9,3097.3,1.12411141]
[1720657953268,0.0347983,3097.9,3097.1,0.84679055]
[1720657953467,0.0347983,3097.9,3097.2,2.8102807]
[1720657953675,2.3496,3097.8,3097.0,0.67743244]
[1720657953964,2.3496,3097.8,3097.1,2.81028858]
[1720657954270,0.03473444,3097.7,3097.2,1.12411543]
[1720657954432,0.03473444,3097.7,3097.0,0.67743244]
[1720657954631,0.03473444,3097.7,3097.5,0.79]
[1720657954838,2.3496,3097.8,3097.5,0.79]
[1720657955045,0.0346881,3097.7,3097.5,0.79]
[1720657955433,2.3496,3097.8,3097.5,0.79]
[1720657955761,0.0346881,3097.7,3097.5,0.79]
[1720657956266,0.03465617,3097.6,3097.5,0.79]
[1720657956629,2.3496,3097.8,3097.5,0.79]
[1720657956868,0.0346881,3097.7,3097.5,0.79]
[1720657957364,2.3496,3097.8,3097.3,0.79]
[1720657957526,0.03465617,3097.6,3097.3,0.79]
[1720657957740,0.0346881,3097.7,3097.3,0.79]
[1720657957938,0.03462424,3097.5,3097.3,0.79]
[1720657958165,2.3496,3097.8,3097.3,0.79]
[1720657958643,0.03461885,3097.7,3097.5,0.79]
[1720657958953,2.3496,3097.8,3097.5,0.79]
[1720657959150,0.03458692,3097.6,3097.5,0.79]
[1720657959381,2.3872,3098.1,3097.5,2.16166641]
[1720657959682,2.3872,3098.1,3097.7,0.79]
[1720657959884,0.03473442,3098.0,3097.7,0.79]
[1720657960979,0.03473442,3098.0,3097.2,0.67743244]
[1720657961180,0.03473442,3098.0,3097.5,0.79]
[1720657961654,2.3751,3097.9,3097.5,0.79]
[1720657961956,0.03468046,3097.8,3097.5,0.79]
[1720657964294,0.03468046,3097.8,3097.7,0.79]
[1720657964585,2.4096,3098.2,3097.7,0.79]
[1720657965100,0.0347705,3098.1,3097.7,0.79]
[1720657965471,0.0347705,3098.1,3097.9,0.79]
[1720657966576,0.0347705,3098.1,3097.6,0.67743244]
[1720657966778,0.0347705,3098.1,3097.7,2.80994595]
[1720657966985,0.0347705,3098.1,3097.8,1.12397838]
[1720657967181,0.0347705,3098.1,3097.7,0.34873784]
[1720657967499,0.0347705,3098.1,3097.8,1.12396075]
[1720657967698,0.0347705,3098.1,3097.7,0.34873784]
[1720657967883,3.0,3098.5,3097.8,2.80983439]
[1720657968208,8.28529906,3098.6,3097.9,3.48724458]
[1720657968209,0.03492223,3098.0,3097.9,3.48724458]
[1720657968500,8.28529906,3098.6,3097.9,3.48724458]
[1720657968704,8.28529906,3098.6,3098.0,2.80981214]
[1720657968867,0.03508179,3098.5,3098.1,2.80981214]
[1720657969068,0.03508179,3098.5,3098.2,1.12382174]
[1720657969397,0.03508179,3098.5,3098.3,2.80944683]
[1720657969562,0.03508179,3098.5,3098.4,3.48687927]
[1720657969764,0.03508179,3098.5,3098.4,2.87398641]
[1720657970011,2.4457,3099.2,3098.4,6.13740678]
[1720657970214,0.03504499,3099.1,3098.5,3.4873356]
[1720657970526,2.4457,3099.5,3098.6,3.94413799]
[1720657970678,2.4457,3099.5,3098.7,0.67788877]
[1720657970889,2.4457,3099.5,3098.8,2.80872993]
[1720657971111,2.4457,3099.5,3098.9,1.12349197]
[1720657971388,2.4457,3099.5,3098.9,0.18013807]
[1720657971593,2.4457,3099.5,3098.7,0.67788877]
[1720657971594,0.03527827,3099.4,3098.7,0.67788877]
[1720657971788,2.4457,3099.5,3098.8,2.80874453]
[1720657972013,2.4457,3100.1,3098.9,1.12350117]
[1720657972302,0.03561785,3100.0,3099.0,0.06453337]
[1720657972516,0.28018785,3100.0,3099.0,0.06453337]
[1720657972721,0.28018785,3100.0,3098.8,1.895]
[1720657972722,0.28018785,3100.0,3098.9,0.06453048]
[1720657972936,0.28018785,3100.0,3099.0,2.8084985]
[1720657973235,0.24457,3100.0,3099.1,2.8084642]
[1720657973407,2.4457,3100.1,3099.2,1.12334213]
[1720657973408,0.03558597,3099.9,3099.2,1.12334213]
[1720657973613,2.4457,3100.1,3099.3,0.06452231]
[1720657974229,2.4457,3100.7,3099.2,5.12157]
[1720657974493,0.03607334,3100.6,3099.3,3.77646]
[1720657976033,0.03607334,3100.6,3099.2,1.895]
[1720657976238,0.24817733,3100.5,3099.3,0.22500884]
[1720657976583,2.48210301,3100.4,3099.2,1.895]
[1720657976834,2.4457,3100.3,3098.8,1.895]
[1720657977043,0.03633927,3100.2,3098.8,1.895]
[1720657977595,3.03633927,3100.2,3098.8,1.895]
[1720657977942,2.4457,3100.0,3098.8,1.895]
[1720657978440,0.03622637,3099.9,3098.8,1.895]
[1720657978801,0.03622637,3099.9,3098.6,5.83990239]
[1720657984119,3.408,3099.7,3098.4,1.895]
[1720657984324,2.4696,3099.5,3098.0,1.895]
[1720657984724,2.4696,3099.1,3097.6,1.895]
[1720657985124,2.50496533,3099.0,3097.6,1.895]
[1720657985371,3.55049653,3098.9,3097.7,0.1895]
[1720657985536,3.58629151,3098.9,3097.7,0.1895]
[1720657985751,3.03579498,3098.9,3097.7,3.4177]
[1720657986074,0.03579498,3098.9,3098.0,5.12287]
[1720657986378,0.03579498,3098.9,3098.4,1.895]
[1720657986554,2.4696,3099.4,3098.4,1.895]
[1720657986748,2.4696,3099.4,3098.5,0.1895]
[1720657987050,0.03553736,3099.3,3098.5,0.1895]
[1720657987434,0.03553736,3099.3,3098.1,3.22777]
[1720657987635,0.03553736,3099.3,3098.0,1.895]
[1720657987862,2.2848,3099.2,3098.0,4.895]
[1720657988172,2.2848,3099.0,3097.7,0.1895]
[1720657988359,0.23204476,3098.9,3097.7,0.1895]
[1720657988557,3.26770147,3098.9,3097.7,0.1895]
[1720657989367,3.03565671,3098.9,3097.7,0.1895]
[1720657989680,3.0,3098.8,3097.7,0.1895]
[1720657990042,0.03557576,3098.7,3097.7,0.1895]
[1720657990236,2.2848,3099.0,3097.7,3.41767]
[1720657990476,0.03558813,3098.9,3097.8,0.55]
[1720657990644,0.03558813,3098.9,3097.9,0.396767]
[1720657991170,0.03558813,3098.9,3097.9,3.624737]
[1720657991556,0.03558813,3098.9,3097.9,0.396767]
[1720657991880,0.03558813,3098.9,3097.7,0.1895]
[1720657993039,0.03558813,3098.9,3097.8,3.77809]
[1720657994294,0.03558813,3098.9,3097.9,3.22799]
[1720657994445,0.03558813,3098.9,3097.9,3.29253489]
[1720657994761,0.03558813,3098.9,3097.9,3.22799]
[1720657994955,0.03558813,3098.9,3098.0,0.7006]
[1720657995173,0.03558813,3098.9,3098.0,2.5956]
[1720657995695,0.03558813,3098.9,3098.1,5.60728]
[1720657996053,3.0,3099.2,3098.1,5.60728]
[1720657996253,0.03557274,3099.1,3098.1,5.60728]
[1720657996453,0.03557274,3099.1,3098.2,1.143076]
[1720657996992,0.03557274,3099.1,3098.0,2.5956]
[1720657997166,0.03557274,3099.1,3098.1,0.55]
[1720657999381,0.03557274,3099.1,3098.1,3.84229993]
[1720657999693,0.03557274,3099.1,3098.4,1.895]
[1720657999854,2.3573,3099.5,3098.4,4.2925]
[1720658000054,0.0357161,3099.4,3098.5,0.42925]
[1720658001089,2.3573,3099.5,3098.4,1.895]
[1720658001397,2.3573,3099.5,3098.0,8.22098]
[1720658001596,2.3573,3099.3,3098.1,0.55]
[1720658003056,2.3573,3099.3,3098.2,1.12366636]
[1720658003307,0.0357641,3099.2,3098.3,0.16736664]
[1720658006267,0.0357641,3099.2,3098.4,3.22746]
[1720658006477,0.0357641,3099.2,3098.5,3.53932756]
[1720658006783,2.2531,3099.6,3098.6,1.12352756]
[1720658006984,0.03562086,3099.1,3098.6,1.12352756]
[1720658007193,2.2531,3099.6,3098.7,0.35476985]
[1720658007409,2.2531,3099.6,3098.5,1.74975778]
[1720658007563,0.03574845,3099.5,3098.6,1.12348287]
[1720658008574,0.03574845,3099.5,3098.5,2.42520934]
[1720658008773,0.03574845,3099.5,3098.6,1.12351453]
[1720658008974,0.03574845,3099.5,3098.7,1.12351453]
[1720658009203,2.4513,3099.4,3098.7,0.35487239]
[1720658009383,2.4513,3099.4,3098.4,1.895]
[1720658009701,0.03585266,3099.3,3098.4,3.58022415]
[1720658009893,0.03585266,3099.3,3098.4,6.80769415]
[1720658010194,0.03585266,3099.3,3098.5,2.87335449]
[1720658010401,0.03585266,3099.3,3098.6,2.80882082]
[1720658010704,0.03585266,3099.3,3098.7,1.47840663]
[1720658010905,0.03585266,3099.3,3098.7,0.35488061]
[1720658011285,0.03585266,3099.3,3098.4,1.895]
[1720658011486,0.03585266,3099.3,3098.5,2.80902926]
[1720658011691,0.03585266,3099.3,3098.5,1.68541756]
[1720658011999,2.3899,3099.2,3098.3,0.8428182]
[1720658012219,2.3899,3099.2,3098.4,2.80904838]
[1720658012404,0.03571782,3099.1,3098.5,3.17423504]
[1720658012704,2.3899,3099.2,3098.6,1.12361935]
[1720658012913,0.03569581,3099.0,3098.5,0.36518666]
[1720658013086,2.3899,3099.2,3098.5,0.36518666]
[1720658013268,0.0357169,3099.1,3098.3,0.8428182]
[1720658013472,2.3899,3099.2,3098.4,2.80905032]
[1720658013715,2.3899,3099.2,3098.5,2.80905032]
[1720658013888,0.0357169,3099.1,3098.6,2.80905032]
[1720658014090,0.3370938,3099.1,3098.4,3.90282156]
[1720658014414,0.3370938,3099.1,3098.7,0.67545156]
[1720658014603,0.3370938,3099.1,3098.8,1.12360789]
[1720658014801,0.3370938,3099.1,3098.6,0.67545156]